Cogmind - Beta 13 @@@ ROGUE MODE // 2024.04.17 @ 01:23:27 Player: Nebula avali Result: Destroyed by as-47362 with Assembled Heavy Rifle Performance ------------- Evolutions (0) 0 Regions Visited (2) 400 Robots Destroyed (1) 5 Value Destroyed (5) 5 Prototype IDs (0) 0 Alien Tech Used (0) 0 Bonus (0) 0 TOTAL SCORE: 410 Bonus ------- None Cogmind --------- Core Integrity 0/250 Matter 264/300 Energy 46/100 System Corruption 10% Temperature Cool (0) Movement Core (50) Location -10/Mines Parts ------- > --- POWER (1) -------- (None) > --- PROPULSION (2) --- Armored Treads > --- UTILITY (2) ------ Improved Sensor Array Hacking Suite > --- WEAPON (2) ------- (None) > --- INVENTORY (5) ---- Compact Wheel Peak State ------------ > --- POWER ------------ Light Ion Engine > --- PROPULSION ------- Armored Treads Armored Treads > --- UTILITY ---------- Small Storage Unit Improved Light Armor Plating > --- WEAPON ----------- Light Assault Rifle Mining Claw > --- INVENTORY -------- Compact Wheel Compact Wheel Improved Sensor Array Hacking Suite Light Assault Rifle [Rating: 13] Favorites ----------- Power Light Ion Engine Engine Light Ion Engine Propulsion Armored Treads Treads Armored Treads Leg Aluminum Leg Wheel Compact Wheel Utility Small Storage Unit Device Improved Sensor Array Storage Small Storage Unit Hackware Hacking Suite Protection Improved Light Armor Plating Weapon Light Assault Rifle Energy Gun Small Laser Ballistic Gun Light Assault Rifle Slashing Weapon Mining Claw Build | -11 -10 -10 ------- Run | Yrd Mat Min Slots Evolved . | . . . Power . | . . . Propulsion . | . . . Utility . | . . . Weapon . | . . . Parts Attached 12 | . 1 11 Power 1 | . . 1 Engine 1 | . . 1 Core . | . . . Reactor . | . . . Propulsion 5 | . . 5 Treads 4 | . . 4 Leg . | . . . Wheel 1 | . . 1 Hover . | . . . Flight . | . . . Utility 3 | . . 3 Device 1 | . . 1 Storage . | . . . Processor . | . . . Hackware 1 | . . 1 Protection 1 | . . 1 Artifact . | . . . Weapon 3 | . 1 2 Energy Gun . | . . . Energy Cannon . | . . . Ballistic Gun 1 | . . 1 Ballistic Cannon . | . . . Launcher . | . . . Special Weapon . | . . . Impact Weapon . | . . . Slashing Weapon 2 | . 1 1 Piercing Weapon . | . . . Special Melee Weapon . | . . . Unidentified Prototypes . | . . . Parts Lost 8 | . . 8 Power 1 | . . 1 Propulsion 2 | . . 2 Utility 2 | . . 2 Weapon 3 | . . 3 Highest Loss Streak 8 | . . 8 To Critical Strikes . | . . . Average Slot Usage (%) 88 | . 85 90 Engine 12 | . 14 11 Treads 17 | . . 24 Leg 9 | . 28 1 Storage 13 | . 14 13 Protection 7 | . . 11 Energy Gun 1 | . 3 . Ballistic Gun 13 | . 14 13 Slashing Weapon 11 | . 10 12 Naked Turns . | . . . Heaviest Build 14 | 12 13 14 Greatest Support 40 | 20 20 40 Greatest Overweight (x) 2 | . . 2 Average Overweight (x) . | . . . Largest Inventory Capacity 8 | . 8 8 Average Capacity 7 | . 8 7 Most Carried 8 | . 7 8 Average Carried 5 | . 6 5 Final Capacity 8 | 8 8 5 Final Carried 7 | 6 7 1 Class Distribution -------------------- 100% | Mutant Dominant Class ---------------- Mutant | -10/Materials Mutant | -10/Mines Resources | -11 -10 -10 ----------- Run | Yrd Mat Min Matter Collected 270 | 200 2 68 Remotely . | . . . Salvage Created 47 | . . 47 Parts 4 | . . 4 Haulers Intercepted . | . . . Recyclers Shooed . | . . . Parts Field Recycled . | . . . Retrieved Matter . | . . . Parts Self-Destructed . | . . . Prevented . | . . . Kills | -11 -10 -10 ------- Run | Yrd Mat Min Combat Hostiles Destroyed 2 | . . 2 Guns 2 | . . 2 Classes Destroyed 2 | . . 2 Builder 1 | . . 1 Assembled 2 | . . 2 Best Kill Streak 2 | . . 2 Combat Bots Only 2 | . . 2 Max Kills in Single Turn 1 | . . 1 Gunslinging . | . . . Exploded . | . . . Melee . | . . . Uniques/NPCs Destroyed . | . . . Combat | -11 -10 -10 -------- Run | Yrd Mat Min Hostile Shots Fired 128 | . 22 106 Missed 40 | . 7 33 Damage Taken 1564 | . 117 1447 Core 260 | . 32 228 Absorbed by Shields . | . . . Core Remaining (%) 100 | 100 . . Volleys Fired 16 | . . 16 Largest 1 | . . 1 Hottest 20 | . . 20 Shots Fired 16 | . . 16 Gun 16 | . . 16 Cannon . | . . . Launcher . | . . . Special . | . . . Kinetic 16 | . . 16 Thermal . | . . . Explosive . | . . . Electromagnetic . | . . . Robot Hit Streak 3 | . . 3 Robot Miss Streak 4 | . . 4 Penetration Max . | . . . Secondary Targets . | . . . Shots Hit Robots 9 | . . 9 Core Hits 6 | . . 6 Critical Kills . | . . . Critical Parts Destroyed . | . . . Critical Strikes . | . . . Melee Attacks 6 | . 3 3 Impact . | . . . Slashing 6 | . 3 3 Piercing . | . . . Sneak Attacks 3 | . . 3 Combat Hostiles . | . . . Follow-up Attacks . | . . . Damage Inflicted 211 | . 1 210 Guns 69 | . . 69 Cannons . | . . . Explosions . | . . . Melee 141 | . . 141 Ramming 1 | . 1 . Kinetic 69 | . . 69 Thermal . | . . . Explosive . | . . . Electromagnetic . | . . . Impact . | . . . Slashing 141 | . . 141 Piercing . | . . . Highest Corruption 10 | . . 10 Average Corruption 3 | . . 3 Corruption Purged . | . . . Corruption Blocked . | . . . Effects 1 | . . 1 Heat Flow Errors 1 | . . 1 Overload Shots . | . . . Overflow Damage 41 | . . 41 Projectiles . | . . . Explosions . | . . . Melee 41 | . . 41 Knockbacks . | . . . Impact . | . . . Kinetic . | . . . Secondary . | . . . Self-Inflicted Damage . | . . . Shots . | . . . Rammed . | . . . Targets Rammed 1 | . 1 . Kicked 1 | . 1 . Crushed . | . . . Highest Temperature 227 | . . 227 Average Temperature 140 | . . 140 Received Heat Transfer . | . . . Siege Activations . | . . . Robots Corrupted . | . . . Combat Hostiles . | . . . Parts Fried . | . . . Impact Corruptions . | . . . Robots Melted . | . . . Combat Hostiles . | . . . Parts Melted . | . . . Heat Transferred . | . . . Parts Sabotaged . | . . . Parts Stolen . | . . . Parts Stripped . | . . . Power Chain Reactions . | . . . Alert | -11 -10 -10 ------- Run | Yrd Mat Min Peak Influence 39 | . 39 35 Initial 15 | . . 15 Average 16 | . 18 14 Maximum Alert Level . | . . . Low Security (%) 100 | . 100 100 Level 1 . | . . . Level 2 . | . . . Level 3 . | . . . Level 4 . | . . . Level 5 . | . . . High Security . | . . . Max Security . | . . . Squads Dispatched . | . . . Investigation . | . . . Extermination . | . . . Reinforcement . | . . . Assault . | . . . Garrison . | . . . Intercept . | . . . Searches Triggered . | . . . Construction Impeded . | . . . Haulers Reinforced . | . . . Active Scanning Responses . | . . . Cargo Convoy Interrupts . | . . . Stealth | -11 -10 -10 --------- Run | Yrd Mat Min Distress Signals . | . . . Communications Jammed . | . . . Distress Signals . | . . . Times Spotted 13 | . 4 9 Peak Tracking Total 9 | . 3 9 Tactical Retreats 1 | . . 1 Traps | -11 -10 -10 ------- Run | Yrd Mat Min Traps Triggered 1 | . . 1 Indirectly . | . . . Trap Hack Attempts . | . . . Triggered . | . . . Disarmed . | . . . Reprogrammed . | . . . Reused . | . . . Traps Extracted . | . . . Installed . | . . . Triggered . | . . . Machines | -11 -10 -10 ---------- Run | Yrd Mat Min Machines Disabled 1 | . 1 . Max in Single Turn 1 | . 1 . Machines Repaired . | . . . Machines Dismantled . | . . . Machines Sabotaged . | . . . Overloaded Fab Kills . | . . . Hacking | -11 -10 -10 --------- Run | Yrd Mat Min Machines Accessed 2 | . 1 1 Terminals 1 | . 1 . Fabricators . | . . . Repair Stations . | . . . Recycling Units . | . . . Scanalyzers . | . . . Garrison Access . | . . . Total Hacks 3 | . 2 1 Successful 2 | . 1 1 Failed 1 | . 1 . Catastrophic 1 | . 1 . Database Lockouts . | . . . Manual 2 | . 2 . Terminals 2 | . 2 . Fabricators . | . . . Repair Stations . | . . . Recycling Units . | . . . Scanalyzers . | . . . Garrison Access . | . . . Terminal Hacks 2 | . 1 1 Open Door 1 | . . 1 Branch Access Points 1 | . 1 . Fabricator Hacks . | . . . Repair Station Hacks . | . . . Recycling Unit Hacks . | . . . Scanalyzer . | . . . Garrison Access Hacks . | . . . Unauthorized Hacks . | . . . Terminals . | . . . Fabricators . | . . . Repair Stations . | . . . Recycling Units . | . . . Scanalyzers . | . . . Garrison Access . | . . . Data Cores Recovered . | . . . Used . | . . . Hacking Detections 1 | . 1 . Full Trace Events 1 | . 1 . Feedback Events . | . . . Feedback Blocked . | . . . Robot Schematics Acquired . | . . . Robots Built . | . . . Authchips . | . . . Time . | . . . Total Robot Build Rating . | . . . Part Schematics Acquired . | . . . Parts Built . | . . . Authchips . | . . . Time . | . . . Total Part Build Rating . | . . . Parts Repaired . | . . . Time . | . . . Parts Recycled . | . . . Recycled Matter . | . . . Retrieved Matter . | . . . Retrieved Components . | . . . Parts Scanalyzed . | . . . Part Schematics Acquired . | . . . Parts Damaged . | . . . Bothacking | -11 -10 -10 ------------ Run | Yrd Mat Min Used RIF Installer . | . . . Robots Hacked . | . . . Non-combat . | . . . Combat . | . . . Robot Hacks Applied . | . . . Relay Couplers Released . | . . . Fabnet Peak Effective % . | . . . Robots Rewired . | . . . Allies Hacked . | . . . Hacks Repelled . | . . . Allies | -11 -10 -10 -------- Run | Yrd Mat Min Total Allies . | . . . Largest Group . | . . . Highest-Rated Group . | . . . Highest-Rated Ally . | . . . Total Orders . | . . . Ally Attacks . | . . . Total Damage . | . . . Kills . | . . . Allies Corrupted . | . . . Allies Melted . | . . . Intel | -11 -10 -10 ------- Run | Yrd Mat Min Robot Analysis Total . | . . . Derelict Logs Recovered 2 | . . 2 Drone Launches . | . . . Drone Recoveries . | . . . Exploration | -11 -10 -10 ------------- Run | Yrd Mat Min Turns Passed 652 | . 208 444 Spaces Moved 413 | 1 164 248 Core 21 | . . 21 Treads 207 | . . 207 Legs 182 | 1 164 17 Wheels 3 | . . 3 Hover . | . . . Flight . | . . . Fastest Speed 50 | 120 120 50 Average Speed 142 | 120 120 156 Slowest Speed 170 | 120 120 170 Overloaded Moves . | . . . Propulsion Burnouts . | . . . Robots Hopped . | . . . Cave-ins Triggered . | . . . Exploration Rate (%) 30 | 1 34 55 Regions Visited 2 Branch Regions 1 Pre-discovered Areas 1 | . . 1 Known Exits Taken 1 | . 1 . Unknown Exits Taken 1 | 1 . . Scrap Searched 3 | . . 3 Spaces Dug 1 | . 1 . Terrain Destroyed 1 | . 1 . Melee 1 | . 1 . Projectile . | . . . AOE . | . . . Terrain Rammed . | . . . Walls Destroyed . | . . . Machines Disabled . | . . . Actions | -11 -10 -10 --------- Run | Yrd Mat Min Total 455 | . 169 286 Wait . | . . . Move 411 | . 163 248 Hop . | . . . Pick Up 2 | . . 2 Fast Attach 4 | . 1 3 Attach 8 | . . 8 Detach 4 | . 1 3 Swap . | . . . Drop 3 | . . 3 Fire 16 | . . 16 Melee 6 | . 3 3 Ram . | . . . Kick 1 | . 1 . Crush . | . . . Escape Stasis . | . . . Rewire . | . . . Trap . | . . . Miscellaneous . | . . . Route ------- -11/Scrapyard -10/Materials -10/Mines (discovered 2 exits: [*Mat x2]) History --------- Turn | Location | Event 1 | -11/Scrapyard | Discovered new exit (range 0) 1 | -11/Scrapyard | Entered Materials 48 | -10/Materials | Identified exit to Mines 209 | -10/Materials | Entered Mines 217 | -10/Mines | Met a Derelict bent on vengeance 220 | -10/Mines | Met a Derelict who couldn't figure out how to use a Trap Extractor 291 | -10/Mines | Discovered new exit (range 16) 309 | -10/Mines | Build established: Mutant 435 | -10/Mines | Learned location of Zion (-7) 492 | -10/Mines | Discovered new exit (range 8) 503 | -10/Mines | Learned location of 1 exit from Materials 544 | -10/Mines | Assembled infested the area 625 | -10/Mines | Core integrity fell below 50% 636 | -10/Mines | Core integrity fell below 20% 645 | -10/Mines | System corruption reached 10% 653 | -10/Mines | Destroyed by as-47362 with Assembled Heavy Rifle Last Messages --------------- 00609_ U-05 Engineer knocked back. 00612_ T-07 Excavator is excavating. 00616_ as-88141 destroyed. 00620_ T-07 Excavator is excavating. 00622_ as-37672 destroyed. 00625_ T-07 Excavator is excavating. 00627_ Arm. Treads destroyed. 00627_ System corrupted by crushing effect (+2). 00629_ as-32930 destroyed. 00631_ System corrupted: Heat flow error (+250). 00636_ Imp. Light Armor Plating destroyed. 00636_ System corrupted by crushing effect (+1). 00639_ Sml. Storage Unit destroyed. 00639_ System corrupted by crushing effect (+2). 00639_ Knocked back. 00640_ Lgt. Assault Rifle destroyed. 00644_ Com. Wheel destroyed. 00644_ Mining Claw destroyed. 00644_ System corrupted by crushing effect (+2). 00646_ as-02355 destroyed. Map ----- +----------------------------------------------------+ | ??????????????????? ##??????????????# | | ???????????????????# #?????????###### #### | | ????????????????????# #?????????# #??#= | | ?????????????????????# ##????????# ######??#[ | | ????????????????###???# #????????#% #???????#% | | ???????????????## #???# #??####### %#???????#! | | ???????????????# #?## #### ##???????# | | ???????????????# ## ## #???????# | | ????????????????# #???????# | | ????????????????# #?????### | | ???????????????## ##?????# | | ?????????????# ##### ## ######??????# ## | | ?????????????#??# #???# ### ############## ## | | ????????????????# #???# #?## ## | | ???????????????## ##### ##?## ## | | ??????????????## ? #??## ### | | ??????????????# #???###?# | | ??????????????# < ### #??####?# | | ??????????????## #?# #??#" ### | | ???????????????## ##?# ####"!^!# | | ????????????????#??##??# #" ! = | | ????????????????#??#???# #" ^^ | | ????????????????# #???#####*#" #X | | ????############# #?????###%#"!### | | #! ? #???### !!####?# | | ????########## #####??## @ = ##??# | | ?????????????# #??????# #??# | | ?????????????# #??????# % #??# | | ?????????????# #??????# #??######## ###### | | ?????????????# #??????## ##?????????# #????? | | ?????????????# #??????# %##??????????# #????? | | ?????????????# #??????## ##??????????# #????? | | ?????????????? #???????# #??????????# #????? | | ?????????????###???????# %%%#??????????# ###### | | ??????????????????????## aa###????????# | | ??????????????????????# % #????????# ###### | | ??????????????????????# #????????# #????? | | ??????????????????????# #????????# #????? | | ??????????????????????###### ####????????# #????? | | ???????????????????????????###??????????## ####?? | | ???????????????????????????????????????## ##? | | ??????????????????????????????????????## #? | | ?????????????????????????????????????## ## | | ?????????????????????????????????????# < # | | ?????????????????????????????????????# | | ?????????????????????????????????????# ## ### | | ?????????????????????????????????????########?## | | ???????????????????????????????????????????????## | | ????????????????????????????????????????????????## | | ?????????????????????????????????????????????????? | +----------------------------------------------------+ Best States ------------- Heat Dissipation 25 Energy Generation 10 Energy Capacity 250 Matter Stores 300 Matter Capacity 300 Sight Range 16 Robot Scan Range 15 Terrain Scan Density 10 Armor Coverage 150 Evasion (%) 55 Recoil Reduction 2 Offensive Hacking 10 Item Schematics ----------------- None Robot Schematics ------------------ None Fabricated ------------ Nothing Alien Tech Used ----------------- None Achievements -------------- None Challenges ------------ None Game ------ Seed Cogmind Manual? 1 Play Time 00:07:12 Cumulative 41.3 hours Start 2024.04.17 @ 01:19:13 End 2024.04.17 @ 01:23:27 Sessions 1 Manual Loads 0 Difficulty Rogue Special Mode None Game No. 61 Rogue 60 Adventurer 1 Explorer 0 Win Type - Total 2 Types 2/0/0/0/0/0/0/0/0 Lore% 25 Gallery% 47 Achievement% 39 Wizard Run 0 Options --------- Layout 0 ASCII 0 Keyboard 0 Movement Numpad Keybinds 0 Fullscreen 1 Font 18/SmallcapsGlow Map View 76x50 Zoom Use 0% Tactical HUD 1 Map Filters NONE Filters NONE Steam 1 RUN: 2e732fa5-50c5-4fcc-9643-8f6246ae0651